bitfinex-derivatives/quotes_SOLF0:USTF0_20241211
["timestamp","ask_amount","ask_price","bid_price","bid_amount"]
[1733925206408,16.49152766,226.2,226.02,24.66242391]
[1733925206607,16.49152766,226.2,226.02,21.84242391]
[1733925207515,2.2104,226.1,226.04,2.2109]
[1733925208014,2.2103,226.11,226.05,2.2109]
[1733925208218,2.82,226.15,226.05,2.2109]
[1733925208405,16.49152766,226.2,226.02,21.84242391]
[1733925208406,2.82,226.16,226.02,21.84242391]
[1733925208607,2.2103,226.11,226.05,2.2108]
[1733925209312,2.2104,226.1,226.05,2.2108]
[1733925211207,2.2102,226.12,226.03,2.211]
[1733925211408,2.82,226.16,226.02,21.84242391]
[1733925211613,16.49152766,226.2,226.02,21.84242391]
[1733925211810,19.31152766,226.2,226.02,21.84242391]
[1733925212423,2.82,226.2,226.02,21.84242391]
[1733925213417,2.82,226.2,226.11,2.2102]
[1733925213713,2.2099,226.16,226.11,2.2102]
[1733925213913,2.82,226.2,226.1,2.2104]
[1733925214219,2.82,226.25,226.1,16.49152766]
[1733925214417,16.49152766,226.29,226.11,1.3976]
[1733925214614,4.4154,226.38,226.14,16.49152766]
[1733925214818,2.82,226.34,226.15,2.82]
[1733925215212,5.7495872,226.33,226.18,16.49152766]
[1733925215413,4.41736361,226.33,226.22,16.49152766]
[1733925215707,2.20916361,226.33,226.26,2.2088]
[1733925215912,2.20916361,226.33,226.23,4.2176]
[1733925216110,2.2083,226.31,226.23,4.2176]
[1733925216312,2.20916361,226.33,226.23,4.2176]
[1733925216711,2.20916361,226.33,226.19,2.6704]
[1733925216919,2.20916361,226.33,226.2,2.2094]
[1733925217117,2.2088,226.27,226.19,7.84445686]
[1733925217314,2.82,226.31,226.19,7.84445686]
[1733925218615,2.82,226.31,226.19,2.6704]
[1733925220919,16.49152766,226.28,226.1,16.49152766]
[1733925221116,16.49152766,226.28,226.11,2.82]
[1733925222125,2.2095,226.2,226.15,2.2098]
[1733925222417,16.49152766,226.28,226.14,5.43640243]
[1733925222418,2.82,226.25,226.14,5.43640243]
[1733925222619,2.209,226.24,226.14,5.43640243]
[1733925222822,2.82,226.27,226.14,5.43640243]
[1733925223017,16.49152766,226.32,226.14,5.43640243]
[1733925223223,2.2086,226.29,226.24,2.209]
[1733925223717,2.2086,226.29,226.22,2.82]
[1733925223718,2.2085,226.3,226.25,2.2089]
[1733925223919,19.31152766,226.36,226.23,2.7063]
[1733925224118,16.49152766,226.36,226.23,2.7063]
[1733925224323,19.31152766,226.36,226.23,2.7063]
[1733925224524,0.72021551,226.35,226.23,2.7063]
[1733925224722,19.31152766,226.36,226.23,2.7063]
[1733925224917,19.31152766,226.36,226.18,1.3872]
[1733925224918,0.72022406,226.35,226.19,2.82]
[1733925225220,16.49152766,226.31,226.19,2.82]
[1733925225821,2.82,226.3,226.15,5.5295]
[1733925226122,2.82,226.3,226.15,7.7394]
[1733925226123,2.2095,226.2,226.15,7.7394]
[1733925226629,2.2095,226.19,226.15,7.7394]
[1733925227225,2.2095,226.19,226.15,4.9194]
[1733925228229,2.2095,226.19,226.1,1.3872]
[1733925228230,2.82,226.27,226.1,1.3872]
[1733925228432,16.49152766,226.26,226.1,1.3872]
[1733925228728,16.49152766,226.26,226.12,2.2101]
[1733925230121,2.2098,226.16,226.12,2.2101]
[1733925230625,16.49152766,226.26,226.1,6.81200867]
[1733925231230,0.72054478,226.25,226.1,6.81200867]
[1733925231432,16.49152766,226.26,226.1,6.81200867]
[1733925231623,16.49152766,226.22,226.1,6.81200867]
[1733925231820,2.2102,226.13,226.09,2.2105]
[1733925232021,2.82,226.21,226.06,2.8037]
[1733925232422,2.82,226.21,226.06,8.14203006]
[1733925232627,16.49152766,226.18,226.06,2.8037]
[1733925233130,16.49152766,226.18,225.99,4.2333]
[1733925233324,16.49152766,226.14,226.0,2.21238938]
[1733925233528,2.82,226.13,226.0,2.21238938]
[1733925233728,2.2108,226.06,226.02,2.2111]
[1733925234030,2.2108,226.06,226.0,2.21238938]
[1733925234031,2.82,226.13,226.0,2.21238938]
[1733925234231,16.49152766,226.09,226.0,2.21238938]
[1733925234623,2.82,226.13,226.0,2.21238938]
[1733925234624,16.49152766,226.05,226.0,2.21238938]
[1733925234822,2.2112,226.01,226.0,2.21238938]
[1733925235226,2.82,226.04,226.0,2.21238938]
[1733925235423,2.82,226.11,226.0,2.21238938]
[1733925235624,2.82,226.12,226.0,2.21238938]
[1733925235827,2.82,226.12,225.96,16.49152766]
[1733925236329,2.2105,226.09,226.04,2.2109]
[1733925236632,2.82,226.12,226.0,2.82]
[1733925237034,2.2105,226.09,226.0,2.82]
[1733925237333,2.82,226.12,226.0,2.82]
[1733925238430,16.49152766,226.16,226.0,19.31152766]
[1733925238633,2.82,226.16,226.01,1.3294]
[1733925239030,2.82,226.16,226.05,2.2108]
[1733925239031,2.2101,226.13,226.05,2.2108]
[1733925239232,2.82,226.16,226.01,1.3294]
[1733925239836,2.2104,226.11,226.05,2.2108]
[1733925240536,2.82,226.16,226.01,1.3294]
[1733925240938,2.82,226.17,226.05,2.2108]
[1733925241139,2.2101,226.13,226.01,1.3294]
[1733925241529,2.82,226.17,226.08,2.2105]
[1733925242034,2.82,226.29,226.15,2.2098]
[1733925242235,2.82,226.29,226.15,5.0298]
[1733925242236,2.2093,226.21,226.15,5.0298]
[1733925242436,2.20965175,226.28,226.15,2.82]
[1733925242635,0.72050354,226.27,226.15,2.82]
[1733925242841,5.25533279,226.24,226.15,5.0299]
[1733925243130,2.20965175,226.28,226.15,2.82]
[1733925243534,2.20965175,226.28,226.2,16.49152766]
[1733925243733,2.20965175,226.28,226.21,6.8976]
[1733925244136,0.03205175,226.28,226.21,6.8976]
[1733925244328,19.31152766,226.43,226.24,16.49152766]
[1733925244528,2.20828548,226.42,226.28,16.49152766]
[1733925244831,244.6425949,226.54,226.21,6.8976]
[1733925244832,244.6425949,226.6,226.36,16.49152766]
[1733925245033,244.6425949,226.6,226.45,16.49152766]
[1733925245034,13.51044613,226.55,226.45,16.49152766]
[1733925245238,2.20701831,226.55,226.5,2.2064]
[1733925245434,5.32748353,226.64,226.49,16.49152766]
[1733925245735,2.20623924,226.63,226.49,16.49152766]
[1733925246129,2.2053,226.62,226.53,2.2061]
[1733925246328,2.2053,226.62,226.54,2.82]
[1733925246329,2.20643396,226.61,226.54,2.82]
[1733925246732,2.2056,226.6,226.49,18.69802766]
[1733925246939,2.20643396,226.61,226.5,2.82]
[1733925247135,2.20643396,226.61,226.45,16.49152766]
[1733925247330,2.20643396,226.61,226.49,16.49152766]
[1733925247537,2.7317,226.8,226.53,16.49152766]
[1733925247732,0.05890397,226.6,226.58,2.2057]
[1733925248040,5.32254602,226.74,226.59,2.82]
[1733925248333,2.20526617,226.73,226.59,2.82]
[1733925249433,2.20526617,226.73,226.6,2.2054]
[1733925249434,2.2046,226.7,226.6,2.2054]
[1733925249736,2.2056553,226.69,226.6,2.2054]
[1733925250133,2.2056553,226.69,226.61,2.82]
[1733925251033,2.2052,226.63,226.6,2.82]
[1733925251434,2.2056553,226.69,226.6,19.31152766]
[1733925251640,2.2043,226.73,226.64,2.2051]
[1733925251832,40.18221766,226.81,226.6,19.31152766]
[1733925252336,40.18221766,226.81,226.64,2.2051]
[1733925252733,40.18221766,226.81,226.6,19.31152766]
[1733925252939,40.18221766,226.81,226.62,2.2052]
[1733925252940,2.2043,226.73,226.62,2.2052]
[1733925253134,40.18221766,226.81,226.6,24.54262659]
[1733925253642,10.79642801,226.8,226.6,24.54262659]
[1733925253840,2.2042,226.74,226.66,2.2049]
[1733925254137,16.49152766,226.77,226.6,21.72262659]
[1733925254442,16.49152766,226.77,226.6,8.05109893]
[1733925254833,16.49152766,226.73,226.6,5.23109893]
[1733925255038,2.82,226.72,226.58,2.82]
[1733925255237,2.82,226.72,226.59,2.20662871]
[1733925255640,16.49152766,226.69,226.59,2.20662871]
[1733925255840,1.4025,226.68,226.59,2.20662871]
[1733925256037,2.205,226.66,226.59,2.20662871]
[1733925256341,2.82,226.66,226.59,2.20662871]
[1733925257336,16.49152766,226.65,226.59,2.20662871]
[1733925257747,2.82,226.64,226.59,2.20662871]
[1733925258244,2.2055,226.6,226.59,2.20662871]
[1733925258635,2.82,226.64,226.59,2.20662871]
[1733925258835,2.2054,226.61,226.59,2.20662871]
[1733925260643,2.2051,226.65,226.59,2.20662871]
[1733925260949,19.31152766,226.72,226.59,2.20662871]
[1733925261144,2.205,226.65,226.59,2.20662871]
[1733925261340,19.31152766,226.72,226.59,2.20662871]
[1733925262744,2.2054,226.61,226.59,2.20662871]
[1733925263545,1.4207,226.67,226.51,5.2436027]
[1733925263741,16.49152766,226.64,226.47,2.82]
[1733925263944,16.49152766,226.6,226.44,2.82]
[1733925264149,16.49152766,226.56,226.4,2.82]
[1733925264741,16.49152766,226.56,226.39,4.0508]
[1733925264948,16.49152766,226.52,226.35,2.82]
[1733925265142,2.2068,226.47,226.35,5.0279]
[1733925265442,2.82,226.51,226.35,5.0279]
[1733925265847,2.82,226.51,226.35,2.82]
[1733925266143,16.49152766,226.48,226.35,2.82]
[1733925266347,16.49152766,226.48,226.33,1.3778]
[1733925267147,2.2077,226.38,226.33,1.3778]
[1733925267446,16.49152766,226.48,226.33,1.3778]
[1733925267447,2.2077,226.37,226.33,1.3778]
[1733925267645,2.82,226.45,226.33,1.3778]
[1733925267838,16.49152766,226.44,226.31,5.23121129]
[1733925268041,2.2082,226.33,226.31,5.23121129]
[1733925268638,2.208,226.35,226.31,5.23121129]
[1733925268844,17.81442766,226.44,226.31,5.23121129]
[1733925269048,2.82,226.47,226.31,5.23121129]
[1733925269241,2.2074,226.4,226.31,5.23121129]
[1733925269839,2.82,226.47,226.32,2.2081]
[1733925271539,2.82,226.46,226.32,2.2081]
[1733925272246,2.82,226.46,226.31,5.23121129]
[1733925272643,16.49152766,226.44,226.31,5.23121129]
[1733925272853,16.49152766,226.44,226.28,2.8091]
[1733925273256,16.49152766,226.44,226.29,5.36629473]
[1733925273858,16.49152766,226.44,226.28,2.8091]
[1733925274058,16.49152766,226.4,226.28,2.8091]
[1733925274358,2.82,226.39,226.28,2.8091]
[1733925274557,2.2085,226.3,226.23,16.49152766]
[1733925274757,2.2085,226.3,226.23,19.31152766]
[1733925275154,2.2085,226.3,226.25,2.2088]
[1733925275959,2.82,226.39,226.27,5.2187391]
[1733925275960,2.2083,226.32,226.27,5.2187391]
[1733925276164,2.82,226.39,226.27,5.2187391]
[1733925276367,2.82,226.41,226.27,5.2187391]
[1733925276660,2.2079,226.35,226.27,5.2187391]
[1733925276962,2.2079,226.35,226.29,2.2085]
[1733925277158,2.82,226.41,226.29,2.2085]
[1733925277362,2.2081,226.34,226.29,2.2085]
[1733925278057,2.2077,226.37,226.27,5.2187391]
[1733925278259,2.82,226.41,226.27,5.2187391]
[1733925278762,2.2082,226.35,226.3,2.2085]
[1733925279863,2.2082,226.34,226.28,2.2087]
[1733925280062,2.2082,226.34,226.27,5.2187391]
[1733925280262,2.2083,226.33,226.29,2.2087]
[1733925280472,16.49152766,226.4,226.27,5.2187391]
[1733925281264,16.49152766,226.36,226.22,1.4249]
[1733925281462,2.82,226.35,226.22,1.4249]
[1733925281664,2.2092,226.24,226.22,1.4249]
[1733925282168,2.2092,226.24,226.18,2.82]
[1733925282169,2.2094,226.22,226.18,2.82]
[1733925282368,2.82,226.29,226.16,2.82]
[1733925282558,2.82,226.29,226.17,2.2098]
[1733925282759,2.82,226.29,226.15,2.82]
[1733925283363,2.2089,226.25,226.15,2.82]
[1733925283563,2.82,226.29,226.15,2.82]
[1733925283858,2.82,226.29,226.19,5.29549368]
[1733925284668,16.49152766,226.32,226.19,5.29549368]
[1733925284871,2.82,226.31,226.19,5.29549368]
[1733925285264,2.2088,226.26,226.22,2.2091]
[1733925285460,2.2088,226.26,226.19,5.29549368]
[1733925285965,2.82,226.31,226.19,5.29549368]
[1733925286764,2.2092,226.23,226.19,5.29549368]
[1733925289072,16.49152766,226.28,226.14,2.82]
[1733925289469,2.2093,226.21,226.17,5.23112506]
[1733925290567,2.2093,226.21,226.17,7.44082506]
[1733925290962,2.2094,226.2,226.14,2.82]
[1733925291571,2.2094,226.2,226.16,5.32123686]
[1733925292168,16.49152766,226.28,226.07,20.63052766]
[1733925292169,2.2096,226.18,226.07,20.63052766]
[1733925292377,19.31152766,226.24,226.08,2.82]
[1733925292574,16.49152766,226.2,226.07,4.139]
[1733925292965,16.49152766,226.2,226.08,2.2105]
[1733925293171,16.49152766,226.16,226.04,2.82]
[1733925293364,2.82,226.15,226.04,2.82]
[1733925293673,2.82,226.15,226.05,2.2108]
[1733925293871,2.82,226.15,225.99,16.49152766]
[1733925294065,2.82,226.15,226.03,2.211]
[1733925294066,2.2103,226.11,226.03,2.211]
[1733925294267,2.82,226.15,226.03,2.211]
[1733925294770,2.82,226.15,226.0,2.82]
[1733925294971,16.49152766,226.16,226.0,2.82]
[1733925295174,2.2102,226.12,226.07,2.2106]
[1733925295369,2.2102,226.12,226.03,5.39170078]
[1733925295574,2.82,226.15,226.03,5.39170078]
[1733925295774,181.5564324,226.44,226.03,5.39170078]
[1733925295775,48.02501816,226.36,226.11,16.49152766]
[1733925295968,16.49152766,226.3,226.12,5.592]
[1733925296470,2.2089,226.25,226.16,2.2098]
[1733925296670,2.82,226.29,226.12,5.592]
[1733925296972,2.209,226.24,226.17,2.2097]
[1733925297169,2.82,226.26,226.12,5.592]
[1733925297577,19.31152766,226.3,226.12,5.592]
[1733925297877,19.31152766,226.3,226.14,16.49152766]
[1733925298175,2.82,226.3,226.14,16.49152766]
[1733925298474,2.82,226.31,226.15,1.4161]
[1733925298770,2.2086,226.28,226.22,2.2091]
[1733925299076,2.7445,226.33,226.18,2.82]
[1733925299373,2.7445,226.33,226.23,2.2091]
[1733925299374,2.2085,226.29,226.23,2.2091]
[1733925299677,20.73844,226.24,226.15,1.4161]
[1733925301272,20.73844,226.24,226.23,2.2091]
[1733925301871,20.73844,226.24,226.22,2.2092]
[1733925302074,20.73844,226.24,226.2,5.38971556]
[1733925302674,20.73844,226.24,226.23,2.2091]
[1733925303075,20.73844,226.24,226.2,5.38971556]
[1733925303873,20.73844,226.24,226.23,2.2091]
[1733925304873,20.73844,226.24,226.22,2.2092]
[1733925305073,20.73844,226.24,226.2,5.38971556]
[1733925305776,20.73844,226.24,226.15,1.4161]
[1733925306480,2.2093,226.21,226.15,1.4161]
[1733925306684,20.73844,226.24,226.15,1.4161]
[1733925306875,2.82,226.22,226.12,2.772]
[1733925307278,16.49152766,226.21,226.03,16.49152766]
[1733925307480,17.84232766,226.21,226.03,2.82]
[1733925307877,16.49152766,226.17,226.03,2.82]
[1733925308075,2.82,226.16,225.96,4.0797]
[1733925308382,2.2107,226.07,225.97,2.82]
[1733925308975,2.2107,226.07,226.01,5.3473493]
[1733925309573,2.82,226.1,226.01,7.5585493]
[1733925310080,2.2107,226.07,226.01,2.2112]
[1733925310274,2.2107,226.07,225.98,2.21258518]
[1733925310476,2.7385,226.16,225.98,2.21258518]
[1733925310679,2.2102,226.12,225.98,2.21258518]
[1733925310874,2.82,226.15,226.0,5.40674826]
[1733925311479,16.49152766,226.13,226.02,2.2111]
[1733925311676,2.2104,226.1,226.02,2.2111]
[1733925311980,2.82,226.11,226.03,4.42309573]
[1733925312179,2.2102,226.13,226.03,2.21209573]
[1733925312380,2.82,226.14,226.03,2.21209573]
[1733925312880,2.7385,226.16,226.03,2.21209573]
[1733925313077,2.82,226.19,226.03,5.03209573]
[1733925313287,2.2098,226.17,226.03,5.03209573]
[1733925313976,2.82,226.19,226.03,5.03209573]
[1733925314685,2.82,226.19,226.03,2.21209573]
[1733925314887,16.49152766,226.17,226.03,2.21209573]
[1733925315485,16.49152766,226.17,226.05,2.2108]
[1733925315683,16.49152766,226.17,226.06,2.21180217]
[1733925315880,16.49152766,226.13,226.06,2.21180217]
[1733925316082,2.2107,226.07,226.06,2.21180217]
[1733925316682,2.2113,226.01,225.97,5.36397743]
[1733925317080,2.82,226.06,225.97,5.36397743]
[1733925317379,16.49152766,226.09,225.97,5.36397743]
[1733925317578,2.7347,226.12,225.97,5.36397743]
[1733925317776,2.2106,226.08,226.03,2.211]
[1733925318588,2.2107,226.07,226.03,2.211]
[1733925318987,2.7347,226.12,226.02,2.2111]
[1733925319185,2.7347,226.12,225.98,2.82]
[1733925319487,2.7347,226.12,226.02,2.2111]
[1733925321288,2.7347,226.12,226.03,2.211]
[1733925321488,2.7347,226.12,225.98,2.82]
[1733925321684,19.22622766,226.12,225.98,2.82]
[1733925321888,16.49152766,226.08,225.96,4.0797]
[1733925322183,2.2114,226.0,225.96,4.0797]
[1733925322388,2.2114,226.0,225.9,16.49152766]
[1733925322590,2.2114,226.0,225.92,2.82]
[1733925323590,2.82,226.07,225.92,2.82]
[1733925323591,2.2113,226.01,225.92,2.82]
[1733925323792,1.3653,226.11,225.94,16.49152766]
[1733925324185,2.82,226.11,225.96,5.29645079]
[1733925324689,2.2106,226.08,225.97,1.3433]
[1733925324883,19.22622766,226.12,225.98,2.82]
[1733925325088,2.82,226.14,226.06,2.2107]
[1733925325285,2.82,226.15,225.99,2.665]
[1733925325491,19.31152766,226.16,225.99,2.665]
[1733925325687,19.31152766,226.16,226.08,2.2105]
[1733925326287,2.2103,226.12,226.08,2.2105]
[1733925326491,19.31152766,226.16,226.06,2.2107]
[1733925327183,2.2103,226.12,226.07,2.2106]
[1733925328084,19.31692766,226.2,226.04,2.82]
[1733925328287,2.82,226.19,226.04,2.82]
[1733925329189,19.31692766,226.2,226.04,2.82]
[1733925329390,19.31692766,226.2,226.08,2.2105]
[1733925329391,2.2098,226.16,226.08,2.2105]
[1733925329588,2.2098,226.16,226.04,2.82]
[1733925329995,19.31692766,226.2,226.04,2.82]
[1733925331190,16.49152766,226.16,226.04,2.82]
[1733925331389,2.2103,226.11,226.04,2.82]
[1733925331991,2.21,226.14,226.04,2.82]
[1733925332195,2.82,226.18,226.04,2.82]
[1733925332591,2.21,226.14,226.1,2.2103]
[1733925333891,2.82,226.18,226.12,2.2102]
[1733925334293,2.82,226.18,226.04,2.82]
[1733925334595,2.2101,226.14,226.04,2.82]
[1733925335095,2.2099,226.15,226.1,2.2103]
[1733925335301,2.82,226.18,226.04,2.82]
[1733925335900,2.2098,226.16,226.04,2.82]
[1733925336095,4.173,226.21,226.06,16.49152766]
[1733925336601,2.2099,226.16,226.11,2.2102]
[1733925336800,4.173,226.21,226.11,2.2102]
[1733925337094,4.173,226.21,226.1,2.2103]
[1733925337293,4.173,226.21,226.06,16.49152766]
[1733925337700,2.21,226.14,226.1,2.2103]
[1733925338393,2.2101,226.13,226.04,2.82]
[1733925338702,4.173,226.21,226.1,5.42949569]
[1733925339000,2.21,226.14,226.1,7.63979569]
[1733925339396,2.82,226.2,226.1,7.63979569]
[1733925339597,2.2101,226.13,226.1,7.63979569]
[1733925339891,2.2101,226.13,226.1,5.42949569]
[1733925340396,2.82,226.2,226.09,2.2105]
[1733925340595,2.82,226.2,226.06,2.82]
[1733925340596,2.2102,226.12,226.06,2.82]
[1733925341299,19.31152766,226.16,225.99,2.665]
[1733925341596,16.49152766,226.12,225.99,2.665]
[1733925341899,16.49152766,226.12,226.0,2.21238938]
[1733925342096,16.49152766,226.12,226.01,5.24671172]
[1733925342299,2.2111,226.03,226.0,2.21238938]
[1733925342690,16.49152766,226.12,226.0,2.21238938]
[1733925342891,1.3424,226.11,226.0,2.21238938]
[1733925343291,16.49152766,226.12,226.0,2.21238938]
[1733925343495,2.2107,226.08,226.0,2.21238938]
[1733925343691,16.49152766,226.12,226.0,2.21238938]
[1733925344302,16.49152766,226.12,226.03,2.211]
[1733925344597,16.49152766,226.12,226.0,2.21238938]
[1733925344795,2.2108,226.06,226.0,2.21238938]
[1733925345002,16.49152766,226.12,226.0,2.21238938]
[1733925345802,4.1756,226.15,226.0,2.21238938]
[1733925345803,2.2112,226.01,226.0,2.21238938]
[1733925347305,19.31152766,226.08,226.0,2.21238938]
[1733925347904,2.2111,226.03,226.0,2.21238938]
[1733925348103,16.49152766,226.12,226.0,2.21238938]
[1733925348307,2.82,226.11,226.0,2.21238938]
[1733925348799,16.49152766,226.15,226.01,2.82]
[1733925349204,16.49152766,226.15,226.01,4.1501]
[1733925349500,1.3911,226.21,226.02,16.49152766]
[1733925350005,2.2099,226.16,226.02,16.49152766]
[1733925350200,1.3911,226.21,226.02,16.49152766]
[1733925350404,2.2099,226.15,226.07,2.2106]
[1733925350602,2.2099,226.15,226.08,2.82]
[1733925350799,1.3911,226.21,226.08,2.82]
[1733925351200,2.2102,226.12,226.08,5.0305]
[1733925351400,1.3911,226.21,226.08,2.82]
[1733925351706,2.2103,226.11,226.06,2.2107]
[1733925352603,2.2105,226.09,226.04,2.2109]
[1733925352907,2.82,226.14,226.01,1.3301]
[1733925354307,2.2105,226.09,226.04,2.2109]
[1733925354707,2.82,226.14,226.01,1.3301]
[1733925355910,2.82,226.14,226.0,5.03238938]
[1733925356213,5.5825,226.14,226.01,2.21229149]
[1733925356716,2.2108,226.06,226.02,2.2111]
[1733925356911,5.5825,226.14,226.01,2.21229149]
[1733925357112,2.211,226.04,226.01,2.21229149]
[1733925357308,2.7625,226.14,226.01,2.21229149]
[1733925357514,1.4023,226.14,226.01,2.21229149]
[1733925357716,2.2102,226.12,226.07,2.2106]
[1733925358008,2.2102,226.12,226.01,2.21229149]
[1733925358916,2.2103,226.11,226.07,2.2106]
[1733925359111,2.82,226.16,226.01,2.21229149]
[1733925359520,2.2102,226.12,226.08,2.2105]
[1733925360113,2.2102,226.12,226.01,2.21229149]
[1733925360320,2.82,226.16,226.01,2.21229149]
[1733925360513,2.21,226.14,226.02,17.86242766]
[1733925360719,2.21,226.14,226.1,2.2103]
[1733925361016,5.616,226.2,226.06,2.82]
[1733925361419,5.616,226.2,226.1,2.2103]
[1733925361717,5.616,226.2,226.06,2.82]
[1733925361912,2.82,226.19,226.06,2.82]
[1733925362517,2.2099,226.15,226.06,2.82]
[1733925362721,2.2099,226.15,226.07,4.35154083]
[1733925362916,6.6233,226.38,226.1,16.49152766]
[1733925363111,2.82,226.3,226.11,7.16494083]
[1733925363323,5.2912833,226.3,226.12,7.17154083]
[1733925363619,22.94744,226.24,226.13,4.35154083]
[1733925363815,20.73844,226.24,226.14,4.35154083]
[1733925364011,20.73844,226.24,226.12,4.2546]
[1733925364012,20.73844,226.24,226.15,4.35154083]
[1733925364211,20.73844,226.24,226.16,4.35154083]
[1733925364412,2.2092,226.23,226.19,2.2095]
[1733925364624,20.73844,226.24,226.12,4.2546]
[1733925364813,2.2092,226.22,226.18,2.2095]
[1733925365619,20.73844,226.24,226.12,4.2546]
[1733925365820,20.73844,226.24,226.13,9.69876926]
[1733925366017,20.73844,226.24,226.14,4.34275572]
[1733925366218,20.73844,226.24,226.23,2.2091]
[1733925366913,11.98363783,226.24,226.23,6.54794553]
[1733925367416,11.98363783,226.24,226.23,4.33884553]
[1733925367615,11.98363783,226.24,226.18,2.82]
[1733925367821,11.98363783,226.24,226.19,4.33761381]
[1733925368021,11.98363783,226.24,226.23,2.2091]
[1733925368721,11.98363783,226.24,226.23,6.54503766]
[1733925369318,5.44123783,226.24,226.23,6.54503766]
[1733925369517,3.26453783,226.24,226.23,6.54503766]
[1733925369914,45.98,226.46,226.32,2.2082]
[1733925369915,2.2078,226.37,226.32,2.2082]
[1733925370113,2.2078,226.37,226.23,20.82746532]
[1733925370114,16.49152766,226.43,226.27,2.82]
[1733925370319,2.82,226.44,226.27,2.82]
[1733925370515,2.82,226.44,226.28,4.32554596]
[1733925370719,2.82,226.44,226.27,2.82]
[1733925370921,2.82,226.43,226.28,4.32565693]
[1733925371125,2.82,226.43,226.23,16.49152766]
[1733925371320,2.82,226.43,226.29,4.32640511]
[1733925371622,16.49152766,226.4,226.23,2.82]
[1733925371821,16.49152766,226.4,226.19,16.49152766]
[1733925372023,2.2082,226.32,226.27,2.2087]
[1733925372221,2.2082,226.32,226.23,2.82]
[1733925372418,16.49152766,226.4,226.23,19.31152766]
[1733925372419,2.82,226.38,226.23,19.31152766]
[1733925372723,2.82,226.4,226.24,4.32394505]
[1733925372922,16.49152766,226.44,226.27,16.49152766]
[1733925373122,16.49152766,226.44,226.3,2.2084]
[1733925373925,2.2077,226.37,226.29,2.2085]
[1733925374118,16.49152766,226.4,226.26,5.33473182]
[1733925374321,2.82,226.39,226.26,5.33473182]
[1733925374824,2.82,226.39,226.24,2.82]
[1733925375019,16.49152766,226.36,226.19,16.49152766]
[1733925375221,2.2088,226.26,226.21,2.2093]
[1733925375420,2.8,226.33,226.22,2.21023782]
[1733925376019,16.49152766,226.32,226.22,2.21023782]
[1733925376224,2.2091,226.23,226.22,2.21023782]
[1733925376424,2.8,226.27,225.9,196.06867141]
[1733925376624,1.3246,226.26,226.09,25.82389168]
[1733925376827,1.3246,226.26,226.1,4.32085533]
[1733925377024,1.3246,226.26,226.13,16.49152766]
[1733925377223,1.3246,226.26,226.16,5.20286217]
[1733925377522,1.3246,226.26,226.17,2.21072644]
[1733925378518,1.3246,226.26,226.17,4.42032644]
[1733925378719,1.3246,226.26,226.17,2.21072644]
[1733925379120,2.2089,226.25,226.2,2.2093]
[1733925379323,1.3246,226.26,226.17,2.21072644]
[1733925382220,1.3246,226.26,226.18,2.8]
[1733925382622,1.3246,226.26,226.22,2.2092]
[1733925382929,1.3246,226.26,226.18,2.8]
[1733925385927,1.3945,226.3,226.18,2.8]
[1733925386133,1.3945,226.3,226.19,10.31552678]
[1733925386330,1.3945,226.3,226.18,2.8]
[1733925386331,11.71002678,226.3,226.18,2.8]
[1733925386531,14.51002678,226.3,226.18,2.8]
[1733925386737,2.2088,226.27,226.18,2.8]
[1733925387031,14.51002678,226.3,226.18,2.8]
[1733925387237,14.51002678,226.3,226.16,5.20286217]
[1733925387529,10.31552678,226.27,226.16,5.20286217]
[1733925387836,4.1945,226.3,226.16,5.20286217]
[1733925388032,1.3945,226.3,226.16,5.20286217]
[1733925388931,1.3945,226.3,226.2,10.31552678]
[1733925389430,3.603,226.3,226.21,2.8]
[1733925389735,1.3945,226.3,226.21,2.8]